{"text_format":"1","workbook":"xlsx","n_sheets":2,"sheets":["入力フォーム","請求書"],"not_rendered":{"charts":0,"images":1,"macros":1,"external_links":0,"defined_names":0,"comments":0,"pivot_tables":0},"unopened":[],"bounds":{"document_bytes":16777216,"sheet_cells":100000,"rows_first":2000,"rows_last":500,"rows_between":2000,"halvings":0,"cell_chars":16384,"cell_head_chars":4096},"cells_cut":0,"cells_raw":0,"read":"whole","date_system":"1900"}

{"sheet":"入力フォーム","index":0,"n_rows":31,"n_cols":209,"rows_kept":31,"cut":false,"hidden":false,"merged":[[22,99,23,113],[26,128,27,148],[28,114,29,127],[20,114,21,127],[28,128,29,148],[13,179,14,190],[13,39,14,41],[13,105,14,107],[13,74,14,76],[15,156,15,171],[15,179,15,194],[16,164,17,167],[16,168,17,171],[16,179,17,194],[16,156,17,159],[16,160,17,163],[13,77,14,104],[13,108,14,143],[13,42,14,73],[13,156,14,175],[10,184,11,207],[10,208,11,209],[12,3,12,38],[12,42,12,73],[12,77,12,104],[12,108,12,143],[12,156,12,175],[12,179,12,190],[10,156,11,171],[10,11,11,38],[10,75,11,124],[10,129,10,134],[11,129,11,134],[10,135,11,142],[10,143,11,147],[10,125,10,128],[9,156,9,171],[7,41,8,43],[7,77,8,96],[7,101,8,120],[18,6,19,14],[18,15,19,98],[18,99,19,113],[5,55,5,79],[10,57,11,74],[18,128,19,148],[7,3,8,18],[9,8,9,26],[16,2,17,4],[16,6,17,14],[16,15,17,98],[16,99,17,113],[16,114,17,127],[13,147,14,151],[16,128,17,148],[7,33,8,40],[13,3,14,38],[1,156,2,207],[6,77,6,96],[6,101,6,120],[7,19,8,21],[7,30,8,32],[3,3,5,51],[3,55,3,97],[3,129,4,150],[3,152,4,157],[3,158,4,207],[4,80,5,120],[5,152,6,157],[6,3,6,29],[7,152,8,157],[7,158,8,207],[1,3,2,6],[1,7,2,10],[1,15,2,42],[7,22,8,29],[1,69,2,135],[1,137,2,140],[5,202,6,207],[5,158,6,201],[1,152,2,155],[30,149,31,152],[20,128,21,148],[18,114,19,127],[24,128,25,148],[26,114,27,127],[30,128,31,148],[22,114,23,127],[22,128,23,148],[30,6,31,127],[24,114,25,127],[26,6,27,14],[26,15,27,98],[26,99,27,113],[28,6,29,14],[28,15,29,98],[28,99,29,113],[24,6,25,14],[24,15,25,98],[24,99,25,113],[20,6,21,14],[20,15,21,98],[20,99,21,113],[22,6,23,14],[22,15,23,98]]}
[]
[null,null,null,0,null,null,null,1,null,null,null,null,null,null,null,null,null,null,null,null,null,null,null,null,null,null,null,null,null,null,null,null,null,null,null,null,null,null,null,null,null,null,null,null,null,null,null,null,null,null,null,null,null,null,null,null,null,null,null,null,null,null,null,null,null,null,null,null,null,"請　求　書（　材料・経費　）",null,null,null,null,null,null,null,null,null,null,null,null,null,null,null,null,null,null,null,null,null,null,null,null,null,null,null,null,null,null,null,null,null,null,null,null,null,null,null,null,null,null,null,null,null,null,null,null,null,null,null,null,null,null,null,null,null,null,null,null,null,null,null,null,null,null,null,null,null,null,null,null,null,null,null,null,null,null,null,null,null,null,"T"]
[]
[null,null,null,"\n下記の通り請求致します。",null,null,null,null,null,null,null,null,null,null,null,null,null,null,null,null,null,null,null,null,null,null,null,null,null,null,null,null,null,null,null,null,null,null,null,null,null,null,null,null,null,null,null,null,null,null,null,null,null,null,null,"※は必ずご記入ください。",null,null,null,null,null,null,null,null,null,null,null,null,null,null,null,null,null,null,null,null,null,null,null,null,null,null,null,null,null,null,null,null,null,null,null,null,null,null,null,null,null,null,null,null,null,null,null,null,null,null,null,null,null,null,null,null,null,null,null,null,null,null,null,null,null,null,null,null,null,null,null,null,null,"免税事業者は1を記入",null,null,null,null,null,null,null,null,null,null,null,null,null,null,null,null,null,null,null,null,null,null,"住所"]
[]
[null,null,null,null,null,null,null,null,null,null,null,null,null,null,null,null,null,null,null,null,null,null,null,null,null,null,null,null,null,null,null,null,null,null,null,null,null,null,null,null,null,null,null,null,null,null,null,null,null,null,null,null,null,null,null,"※(中村組担当者名：",null,null,null,null,null,null,null,null,null,null,null,null,null,null,null,null,null,null,null,null,null,null,null,null,null,null,null,null,null,null,null,null,null,null,null,null,null,null,null,null,null,null,null,null,null,null,null,null,null,null,null,null,null,null,null,null,null,null,null,null,null,null,null,null,null,null,null,null,null,null,null,null,null,null,null,null,null,null,null,null,null,null,null,null,null,null,null,null,null,null,null,null,null,null,null,null,"社名",null,null,null,null,null,null,null,null,null,null,null,null,null,null,null,null,null,null,null,null,null,null,null,null,null,null,null,null,null,null,null,null,null,null,null,null,null,null,null,null,null,null,null,null,null,null,null,null,null,"㊞"]
[null,null,null,"※請求年月日(西暦)",null,null,null,null,null,null,null,null,null,null,null,null,null,null,null,null,null,null,null,null,null,null,null,null,null,null,null,null,null,null,null,null,null,null,null,null,null,null,null,null,null,null,null,null,null,null,null,null,null,null,null,null,null,null,null,null,null,null,null,null,null,null,null,null,null,null,null,null,null,null,null,null,null,"※取引先コード",null,null,null,null,null,null,null,null,null,null,null,null,null,null,null,null,null,null,null,null,null,null,null,"※注文No."]
[null,null,null,null,null,null,null,null,null,null,null,null,null,null,null,null,null,null,null,"年",null,null,null,null,null,null,null,null,null,null,"月",null,null,null,null,null,null,null,null,null,null,"日",null,null,null,null,null,null,null,null,null,null,null,null,null,null,null,null,null,null,null,null,null,null,null,null,null,null,null,null,null,null,null,null,null,null,null,null,null,null,null,null,null,null,null,null,null,null,null,null,null,null,null,null,null,null,null,null,null,null,null,null,null,null,null,null,null,null,null,null,null,null,null,null,null,null,null,null,null,null,null,null,null,null,null,null,null,null,null,null,null,null,null,null,null,null,null,null,null,null,null,null,null,null,null,null,null,null,null,null,null,null,"TEL"]
[]
[null,null,null,null,null,null,null,null,"※工事コード",null,null,null,null,null,null,null,null,null,null,null,null,null,null,null,null,null,null,null,null,null,null,null,null,null,null,null,null,null,null,null,null,null,null,null,null,null,null,null,null,null,null,null,null,null,null,null,null,null,null,null,null,null,null,null,null,null,null,null,null,null,null,null,null,null,null,null,null,null,null,null,null,null,null,null,null,null,null,null,null,null,null,null,null,null,null,null,null,null,null,null,null,null,null,null,null,null,null,null,null,null,null,null,null,null,null,null,null,null,null,null,null,null,null,null,null,null,null,null,null,null,null,null,null,null,null,null,null,null,null,null,null,null,null,null,null,null,null,null,null,null,null,null,null,null,null,null,"部門コード"]
[null,null,null,null,null,null,null,null,null,null,null,null,null,null,null,null,null,null,null,null,null,null,null,null,null,null,null,null,null,null,null,null,null,null,null,null,null,null,null,null,null,null,null,null,null,null,null,null,null,null,null,null,null,null,null,null,null,"※(工事名称:",null,null,null,null,null,null,null,null,null,null,null,null,null,null,null,null,null,null,null,null,null,null,null,null,null,null,null,null,null,null,null,null,null,null,null,null,null,null,null,null,null,null,null,null,null,null,null,null,null,null,null,null,null,null,null,null,null,null,null,null,null,null,null,null,null,null,null,"※",null,null,null,"適用",null,null,null,null,null,null,null,null,null,null,null,null,null,"%",null,null,null,null,null,null,null,null,null,null,null,null,null,null,null,null,null,null,null,null,null,null,null,null,null,null,null,null,null,null,null,null,null,null,null,null,null,null,null,null,null,null,null,null,null,null,null,null,null,null,null,null,null,null,null,null,null,null,null,null,null,null,null,null,")"]
[null,null,null,null,null,null,null,null,null,null,null,null,null,null,null,null,null,null,null,null,null,null,null,null,null,null,null,null,null,null,null,null,null,null,null,null,null,null,null,null,null,null,null,null,null,null,null,null,null,null,null,null,null,null,null,null,null,null,null,null,null,null,null,null,null,null,null,null,null,null,null,null,null,null,null,null,null,null,null,null,null,null,null,null,null,null,null,null,null,null,null,null,null,null,null,null,null,null,null,null,null,null,null,null,null,null,null,null,null,null,null,null,null,null,null,null,null,null,null,null,null,null,null,null,null,null,null,null,null,"税率"]
[null,null,null,"※当月課税分請求額(税抜) A",null,null,null,null,null,null,null,null,null,null,null,null,null,null,null,null,null,null,null,null,null,null,null,null,null,null,null,null,null,null,null,null,null,null,null,null,null,null,"※消費税",null,null,null,null,null,null,null,null,null,null,null,null,null,null,null,null,null,null,null,null,null,null,null,null,null,null,null,null,null,null,null,null,null,null,"※当月非課税分請求額",null,null,null,null,null,null,null,null,null,null,null,null,null,null,null,null,null,null,null,null,null,null,null,null,null,null,null,null,null,null,"※今回請求金額(税込)",null,null,null,null,null,null,null,null,null,null,null,null,null,null,null,null,null,null,null,null,null,null,null,null,null,null,null,null,null,null,null,null,null,null,null,null,null,null,null,null,null,null,null,null,null,null,null,"工種コード",null,null,null,null,null,null,null,null,null,null,null,null,null,null,null,null,null,null,null,null,null,null,"摘要"]
[null,null,null,null,null,null,null,null,null,null,null,null,null,null,null,null,null,null,null,null,null,null,null,null,null,null,null,null,null,null,null,null,null,null,null,null,null,null,null,"+",null,null,null,null,null,null,null,null,null,null,null,null,null,null,null,null,null,null,null,null,null,null,null,null,null,null,null,null,null,null,null,null,null,null,"+",null,null,null,null,null,null,null,null,null,null,null,null,null,null,null,null,null,null,null,null,null,null,null,null,null,null,null,null,null,null,"=",null,null,{"$f":"SUM(D14,AQ14,BZ14)","v":0}]
[]
[null,null,null,null,null,null,null,null,null,null,null,null,null,null,null,null,null,null,null,null,null,null,null,null,null,null,null,null,null,null,null,null,null,null,null,null,null,null,null,null,null,null,null,null,null,null,null,null,null,null,null,null,null,null,null,null,null,null,null,null,null,null,null,null,null,null,null,null,null,null,null,null,null,null,null,null,null,null,null,null,null,null,null,null,null,null,null,null,null,null,null,null,null,null,null,null,null,null,null,null,null,null,null,null,null,null,null,null,null,null,null,null,null,null,null,null,null,null,null,null,null,null,null,null,null,null,null,null,null,null,null,null,null,null,null,null,null,null,null,null,null,null,null,null,null,null,null,null,null,null,null,null,null,null,null,null,"科目コード",null,null,null,null,null,null,null,null,null,null,null,null,null,null,null,null,null,null,null,null,null,null,"科目コード"]
[null,null,"※",null,null,null,"月日",null,null,null,null,null,null,null,null,"品　　　　　　　　　　　目",null,null,null,null,null,null,null,null,null,null,null,null,null,null,null,null,null,null,null,null,null,null,null,null,null,null,null,null,null,null,null,null,null,null,null,null,null,null,null,null,null,null,null,null,null,null,null,null,null,null,null,null,null,null,null,null,null,null,null,null,null,null,null,null,null,null,null,null,null,null,null,null,null,null,null,null,null,null,null,null,null,null,null,"数　量",null,null,null,null,null,null,null,null,null,null,null,null,null,null,"単　価",null,null,null,null,null,null,null,null,null,null,null,null,null,"金　額",null,null,null,null,null,null,null,null,null,null,null,null,null,null,null,null,null,null,null,null,null,null,null,null,null,null,null,4,null,null,null,0,null,null,null,1,null,null,null,0]
[]
[]
[]
[]
[]
[]
[]
[]
[]
[]
[]
[]
[]
[null,null,null,null,null,null,"計",null,null,null,null,null,null,null,null,null,null,null,null,null,null,null,null,null,null,null,null,null,null,null,null,null,null,null,null,null,null,null,null,null,null,null,null,null,null,null,null,null,null,null,null,null,null,null,null,null,null,null,null,null,null,null,null,null,null,null,null,null,null,null,null,null,null,null,null,null,null,null,null,null,null,null,null,null,null,null,null,null,null,null,null,null,null,null,null,null,null,null,null,null,null,null,null,null,null,null,null,null,null,null,null,null,null,null,null,null,null,null,null,null,null,null,null,null,null,null,null,null,{"$f":"SUM(DY19,DY21,DY23,DY25,DY27,DY29)","v":0},null,null,null,null,null,null,null,null,null,null,null,null,null,null,null,null,null,null,null,null,"A"]

{"sheet":"請求書","index":1,"n_rows":84,"n_cols":209,"rows_kept":84,"cut":false,"hidden":false,"merged":[[4,55,5,79],[10,58,11,74],[57,55,58,79],[63,57,64,74],[5,202,6,207],[5,158,6,201],[3,3,5,49],[56,158,61,207],[56,3,58,49],[21,191,22,201],[21,202,22,205],[48,185,49,188],[46,157,47,176],[42,193,45,204],[40,157,41,180],[42,181,45,192],[51,131,51,151],[48,157,49,160],[48,161,49,164],[48,165,49,168],[48,169,49,172],[48,138,49,141],[48,146,49,150],[45,138,46,141],[1,141,2,144],[54,141,55,144],[36,138,37,141],[36,118,37,121],[40,181,41,204],[1,184,2,187],[1,188,2,191],[1,192,2,195],[1,196,2,199],[1,164,2,167],[1,168,2,171],[1,172,2,175],[1,176,2,179],[1,180,2,183],[1,200,2,203],[1,204,2,207],[9,156,9,171],[15,156,15,171],[12,179,12,190],[15,179,15,194],[16,191,17,194],[48,173,49,176],[48,177,49,180],[48,181,49,184],[45,146,46,150],[42,157,45,168],[42,169,45,180],[42,130,43,133],[45,130,46,133],[42,0,43,2],[45,0,46,2],[45,79,46,82],[45,83,46,86],[45,87,46,90],[45,91,46,94],[45,95,46,98],[45,47,46,50],[45,51,46,54],[45,59,46,62],[45,63,46,66],[45,67,46,70],[45,23,46,26],[45,27,46,30],[45,35,46,38],[45,39,46,42],[42,23,43,26],[42,27,43,30],[42,35,43,38],[36,122,37,125],[36,126,37,129],[42,99,43,102],[42,103,43,106],[45,3,46,6],[45,7,46,10],[45,11,46,14],[45,15,46,18],[45,19,46,22],[42,67,43,70],[42,15,43,18],[42,19,43,22],[39,47,40,50],[39,51,40,54],[39,59,40,62],[39,63,40,66],[39,67,40,70],[39,99,40,102],[39,103,40,106],[39,107,40,110],[39,111,40,114],[39,118,40,121],[39,79,40,82],[39,83,40,86],[28,135,29,141],[26,135,27,141],[30,142,31,148],[42,138,43,141],[42,146,43,150],[36,146,37,150],[33,146,34,150],[30,149,31,152],[28,128,29,134],[33,138,34,141],[39,138,40,141],[48,0,49,2],[18,128,19,134],[18,135,19,141],[18,142,19,148],[20,135,21,141],[20,142,21,148],[22,128,23,134],[22,135,23,141],[22,142,23,148],[24,128,25,134],[32,3,32,30],[32,35,32,54],[32,59,32,70],[32,79,32,114],[32,118,32,133],[32,136,32,143],[32,146,32,150],[33,0,34,2],[45,122,46,125],[39,146,40,150],[39,0,40,2],[45,126,46,129],[36,0,37,2],[48,67,49,70],[51,70,52,77],[42,107,43,110],[42,111,43,114],[42,118,43,121],[42,79,43,82],[42,83,43,86],[42,87,43,90],[42,91,43,94],[42,95,43,98],[48,99,49,102],[48,103,49,106],[48,107,49,110],[48,111,49,114],[48,118,49,121],[45,99,46,102],[45,103,46,106],[45,107,46,110],[45,111,46,114],[45,118,46,121],[48,79,49,82],[48,83,49,86],[48,87,49,90],[48,91,49,94],[48,95,49,98],[48,3,49,6],[48,7,49,10],[48,11,49,14],[48,15,49,18],[48,19,49,22],[42,47,43,50],[42,51,43,54],[42,59,43,62],[42,63,43,66],[48,23,49,26],[48,27,49,30],[48,35,49,38],[48,39,49,42],[48,43,49,46],[48,47,49,50],[48,51,49,54],[48,59,49,62],[48,63,49,66],[42,39,43,42],[42,43,43,46],[42,3,43,6],[42,7,43,10],[45,43,46,46],[42,11,43,14],[39,87,40,90],[39,91,40,94],[39,95,40,98],[39,23,40,26],[39,27,40,30],[39,35,40,38],[39,39,40,42],[39,43,40,46],[39,3,40,6],[39,7,40,10],[39,11,40,14],[39,15,40,18],[39,19,40,22],[36,23,37,26],[36,27,37,30],[36,35,37,38],[36,39,37,42],[36,43,37,46],[36,3,37,6],[36,7,37,10],[36,11,37,14],[36,15,37,18],[36,19,37,22],[36,51,37,54],[36,47,37,50],[13,164,14,167],[13,168,14,171],[13,183,14,186],[36,59,37,62],[36,63,37,66],[36,67,37,70],[36,99,37,102],[36,103,37,106],[36,107,37,110],[36,79,37,82],[36,83,37,86],[36,87,37,90],[36,91,37,94],[36,95,37,98],[24,135,25,141],[24,142,25,148],[30,128,31,134],[30,135,31,141],[26,142,27,148],[28,142,29,148],[33,126,34,129],[33,130,34,133],[10,125,10,128],[13,124,14,127],[13,105,14,107],[12,42,12,73],[20,128,21,134],[13,179,14,182],[21,187,22,190],[16,168,17,171],[21,173,22,186],[16,128,17,148],[16,164,17,167],[13,172,14,175],[13,187,14,190],[16,156,17,159],[16,160,17,163],[19,155,20,172],[21,155,22,172],[13,147,14,151],[16,179,17,182],[16,183,17,186],[16,187,17,190],[13,156,14,159],[13,160,14,163],[12,156,12,175],[12,77,12,104],[13,77,14,80],[13,81,14,84],[13,85,14,88],[13,116,14,119],[10,11,11,14],[10,27,11,30],[13,74,14,76],[13,31,14,34],[13,35,14,38],[13,39,14,41],[13,42,14,45],[13,46,14,49],[13,50,14,53],[13,54,14,57],[13,58,14,61],[13,27,14,30],[10,156,11,159],[3,55,3,97],[1,15,2,18],[1,19,2,22],[3,129,4,150],[1,69,2,135],[1,152,2,155],[1,156,2,159],[10,160,11,163],[6,3,6,29],[4,80,5,120],[3,152,4,157],[7,19,8,21],[7,22,8,25],[7,26,8,29],[7,30,8,32],[7,33,8,36],[7,37,8,40],[7,41,8,43],[9,8,9,26],[10,31,11,34],[10,35,11,38],[3,158,4,207],[6,101,6,120],[16,2,17,4],[16,114,17,127],[13,108,14,111],[13,112,14,115],[1,23,2,26],[1,27,2,30],[1,31,2,34],[1,35,2,38],[1,39,2,42],[13,23,14,26],[16,6,17,14],[1,3,2,6],[1,7,2,10],[7,11,8,14],[7,15,8,18],[12,3,12,38],[7,3,8,6],[7,7,8,10],[13,62,14,65],[12,108,12,143],[13,66,14,69],[13,70,14,73],[13,120,14,123],[13,3,14,6],[51,3,51,63],[30,6,31,127],[20,99,21,113],[22,99,23,113],[24,99,25,113],[26,99,27,113],[28,99,29,113],[20,15,21,98],[24,15,25,98],[26,15,27,98],[24,6,25,14],[26,6,27,14],[28,6,29,14],[33,79,34,82],[33,118,34,121],[33,83,34,86],[33,87,34,90],[33,91,34,94],[33,95,34,98],[28,15,29,98],[33,59,34,62],[33,63,34,66],[33,67,34,70],[33,43,34,46],[18,114,19,127],[20,114,21,127],[24,114,25,127],[26,114,27,127],[28,114,29,127],[33,47,34,50],[33,51,34,54],[33,3,34,6],[33,7,34,10],[33,11,34,14],[33,15,34,18],[33,19,34,22],[33,23,34,26],[33,27,34,30],[33,35,34,38],[33,39,34,42],[20,6,21,14],[22,114,23,127],[33,99,34,102],[33,103,34,106],[33,107,34,110],[33,111,34,114],[22,6,23,14],[22,15,23,98],[33,122,34,125],[0,184,0,207],[10,75,11,124],[10,135,11,142],[10,129,10,134],[11,129,11,134],[10,143,11,147],[7,109,8,112],[7,113,8,116],[7,117,8,120],[7,77,8,80],[7,81,8,84],[7,85,8,88],[5,152,6,157],[7,152,8,157],[7,158,8,207],[10,184,11,207],[10,168,11,171],[10,164,11,167],[7,89,8,92],[7,93,8,96],[7,101,8,104],[7,105,8,108],[6,77,6,96],[1,160,2,163],[13,7,14,10],[13,11,14,14],[13,15,14,18],[10,208,11,209],[19,190,20,207],[19,173,20,182],[19,183,20,189],[16,99,17,113],[18,99,19,113],[16,15,17,98],[18,15,19,98],[13,140,14,143],[13,128,14,131],[13,132,14,135],[13,136,14,139],[13,19,14,22],[13,89,14,92],[13,93,14,96],[13,97,14,100],[13,101,14,104],[10,15,11,18],[10,19,11,22],[10,23,11,26],[18,6,19,14],[53,184,53,207],[54,3,55,6],[54,7,55,10],[54,15,55,18],[54,19,55,22],[54,23,55,26],[54,27,55,30],[54,31,55,34],[54,35,55,38],[54,39,55,42],[54,69,55,135],[54,152,55,155],[54,156,55,159],[54,160,55,163],[54,164,55,167],[54,168,55,171],[54,172,55,175],[54,176,55,179],[54,180,55,183],[54,184,55,187],[54,188,55,191],[54,192,55,195],[54,196,55,199],[54,200,55,203],[54,204,55,207],[56,55,56,97],[56,129,57,150],[56,152,57,157],[57,80,58,120],[58,152,59,157],[59,3,59,29],[59,77,59,96],[59,101,59,120],[63,129,63,134],[63,135,64,142],[63,143,64,147],[63,156,64,159],[63,160,64,163],[63,164,64,167],[63,168,64,171],[60,3,61,6],[60,7,61,10],[60,11,61,14],[60,15,61,18],[60,19,61,21],[60,22,61,25],[60,26,61,29],[60,30,61,32],[60,33,61,36],[63,184,64,207],[60,37,61,40],[60,41,61,43],[60,77,61,80],[60,81,61,84],[63,208,64,209],[64,129,64,134],[65,3,65,38],[65,42,65,73],[65,77,65,104],[65,108,65,143],[65,156,65,175],[65,179,65,190],[60,152,61,157],[62,8,62,26],[62,156,62,171],[63,11,64,14],[63,15,64,18],[63,19,64,22],[63,23,64,26],[63,27,64,30],[63,31,64,34],[63,35,64,38],[63,75,64,124],[66,3,67,6],[66,7,67,10],[66,11,67,14],[66,15,67,18],[66,19,67,22],[66,23,67,26],[66,27,67,30],[66,31,67,34],[66,35,67,38],[66,39,67,41],[66,42,67,45],[66,46,67,49],[66,50,67,53],[66,54,67,57],[66,58,67,61],[66,62,67,65],[66,168,67,171],[66,172,67,175],[66,66,67,69],[66,70,67,73],[66,74,67,76],[66,77,67,80],[66,81,67,84],[66,85,67,88],[66,89,67,92],[66,93,67,96],[66,97,67,100],[66,179,67,182],[66,101,67,104],[66,105,67,107],[66,108,67,111],[66,112,67,115],[66,116,67,119],[66,120,67,123],[66,124,67,127],[66,128,67,131],[66,132,67,135],[66,183,67,186],[66,187,67,190],[68,156,68,171],[68,179,68,194],[69,2,70,4],[69,6,70,14],[69,15,70,98],[69,99,70,113],[69,114,70,127],[69,128,70,148],[69,156,70,159],[69,160,70,163],[69,164,70,167],[69,168,70,171],[69,179,70,182],[69,183,70,186],[69,187,70,190],[69,191,70,194],[66,136,67,139],[66,140,67,143],[66,147,67,151],[66,156,67,159],[66,160,67,163],[66,164,67,167],[79,6,80,14],[79,15,80,98],[81,114,82,127],[71,99,72,113],[71,128,72,134],[71,135,72,141],[71,142,72,148],[73,6,74,14],[73,15,74,98],[73,99,74,113],[73,128,74,134],[73,135,74,141],[73,142,74,148],[75,135,76,141],[75,142,76,148],[79,99,80,113],[79,128,80,134],[79,135,80,141],[79,142,80,148],[77,128,78,134],[77,135,78,141],[77,142,78,148],[75,114,76,127],[77,114,78,127],[83,149,84,152],[81,6,82,14],[81,15,82,98],[81,99,82,113],[81,128,82,134],[81,135,82,141],[81,142,82,148],[83,6,84,127],[83,128,84,134],[83,135,84,141],[83,142,84,148],[79,114,80,127],[75,99,76,113],[75,128,76,134],[39,122,40,125],[39,126,40,129],[51,79,52,114],[26,128,27,134],[36,130,37,133],[63,125,63,128],[60,109,61,112],[60,113,61,116],[60,117,61,120],[60,85,61,88],[60,89,61,92],[60,93,61,96],[60,101,61,104],[60,105,61,108],[36,111,37,114],[39,130,40,133],[42,122,43,125],[42,126,43,129],[48,122,49,125],[48,126,49,129],[48,130,49,133],[77,6,78,14],[77,15,78,98],[77,99,78,113],[71,6,72,14],[71,15,72,98],[71,114,72,127],[73,114,74,127],[75,6,76,14],[75,15,76,98]]}
[null,null,null,null,null,null,null,null,null,null,null,null,null,null,null,null,null,null,null,null,null,null,null,null,null,null,null,null,null,null,null,null,null,null,null,null,null,null,null,null,null,null,null,null,null,null,null,null,null,null,null,null,null,null,null,null,null,null,null,null,null,null,null,null,null,null,null,null,null,null,null,null,null,null,null,null,null,null,null,null,null,null,null,null,null,null,null,null,null,null,null,null,null,null,null,null,null,null,null,null,null,null,null,null,null,null,null,null,null,null,null,null,null,null,null,null,null,null,null,null,null,null,null,null,null,null,null,null,null,null,null,null,null,null,null,null,null,null,null,null,null,null,null,null,null,null,null,null,null,null,null,null,null,null,null,null,null,null,null,null,null,null,null,null,null,null,null,null,null,null,null,null,null,null,null,null,null,null,null,null,null,null,null,null,"➀提出用"]
[null,null,null,0,null,null,null,1,null,null,null,null,null,null,null," ",null,null,null," ",null,null,null," ",null,null,null," ",null,null,null," ",null,null,null," ",null,null,null," ",null,null,null,null,null,null,null,null,null,null,null,null,null,null,null,null,null,null,null,null,null,null,null,null,null,null,null,null,null,"請　求　書（　材料・経費　）",null,null,null,null,null,null,null,null,null,null,null,null,null,null,null,null,null,null,null,null,null,null,null,null,null,null,null,null,null,null,null,null,null,null,null,null,null,null,null,null,null,null,null,null,null,null,null,null,null,null,null,null,null,null,null,null,null,null,null,null,null,null,null,null,null,null,null,null,null,null,null," ",null,null,null,null,null,null,null,null,null,null,"T",null,null,null," ",null,null,null," ",null,null,null," ",null,null,null," ",null,null,null," ",null,null,null," ",null,null,null," ",null,null,null," ",null,null,null," ",null,null,null," ",null,null,null," ",null,null,null," ",null,null,null," "]
[]
[null,null,null,"\n下記の通り請求致します。",null,null,null,null,null,null,null,null,null,null,null,null,null,null,null,null,null,null,null,null,null,null,null,null,null,null,null,null,null,null,null,null,null,null,null,null,null,null,null,null,null,null,null,null,null,null,null,null,null,null,null,"※は必ずご記入ください。",null,null,null,null,null,null,null,null,null,null,null,null,null,null,null,null,null,null,null,null,null,null,null,null,null,null,null,null,null,null,null,null,null,null,null,null,null,null,null,null,null,null,null,null,null,null,null,null,null,null,null,null,null,null,null,null,null,null,null,null,null,null,null,null,null,null,null,null,null,null,null,null,null,"免税事業者は1を記入",null,null,null,null,null,null,null,null,null,null,null,null,null,null,null,null,null,null,null,null,null,null,"住所"]
[null,null,null,null,null,null,null,null,null,null,null,null,null,null,null,null,null,null,null,null,null,null,null,null,null,null,null,null,null,null,null,null,null,null,null,null,null,null,null,null,null,null,null,null,null,null,null,null,null,null,null,null,null,null,null,"※(中村組担当者名："]
[null,null,null,null,null,null,null,null,null,null,null,null,null,null,null,null,null,null,null,null,null,null,null,null,null,null,null,null,null,null,null,null,null,null,null,null,null,null,null,null,null,null,null,null,null,null,null,null,null,null,null,null,null,null,null,null,null,null,null,null,null,null,null,null,null,null,null,null,null,null,null,null,null,null,null,null,null,null,null,null,null,null,null,null,null,null,null,null,null,null,null,null,null,null,null,null,null,null,null,null,null,null,null,null,null,null,null,null,null,null,null,null,null,null,null,null,null,null,null,null,null,null,null,null,null,null,null,null,null,null,null,null,null,null,null,null,null,null,null,null,null,null,null,null,null,null,null,null,null,null,null,null,"社名",null,null,null,null,null,null,null,null,null,null,null,null,null,null,null,null,null,null,null,null,null,null,null,null,null,null,null,null,null,null,null,null,null,null,null,null,null,null,null,null,null,null,null,null,null,null,null,null,null,"㊞"]
[null,null,null,"※請求年月日(西暦)",null,null,null,null,null,null,null,null,null,null,null,null,null,null,null,null,null,null,null,null,null,null,null,null,null,null,null,null,null,null,null,null,null,null,null,null,null,null,null,null,null,null,null,null,null,null,null,null,null,null,null,null,null,null,null,null,null,null,null,null,null,null,null,null,null,null,null,null,null,null,null,null,null,"※取引先コード",null,null,null,null,null,null,null,null,null,null,null,null,null,null,null,null,null,null,null,null,null,null,null,"※注文No."]
[null,null,null," ",null,null,null," ",null,null,null," ",null,null,null," ",null,null,null,"年",null,null," ",null,null,null," ",null,null,null,"月",null,null," ",null,null,null," ",null,null,null,"日",null,null,null,null,null,null,null,null,null,null,null,null,null,null,null,null,null,null,null,null,null,null,null,null,null,null,null,null,null,null,null,null,null,null,null," ",null,null,null," ",null,null,null," ",null,null,null," ",null,null,null," ",null,null,null,null,null,null,null," ",null,null,null," ",null,null,null," ",null,null,null," ",null,null,null," ",null,null,null,null,null,null,null,null,null,null,null,null,null,null,null,null,null,null,null,null,null,null,null,null,null,null,null,null,null,null,null,null,null,null,"TEL",null,null,null,null,null,""]
[]
[null,null,null,null,null,null,null,null,"※工事コード",null,null,null,null,null,null,null,null,null,null,null,null,null,null,null,null,null,null,null,null,null,null,null,null,null,null,null,null,null,null,null,null,null,null,null,null,null,null,null,null,null,null,null,null,null,null,null,null,null,null,null,null,null,null,null,null,null,null,null,null,null,null,null,null,null,null,null,null,null,null,null,null,null,null,null,null,null,null,null,null,null,null,null,null,null,null,null,null,null,null,null,null,null,null,null,null,null,null,null,null,null,null,null,null,null,null,null,null,null,null,null,null,null,null,null,null,null,null,null,null,null,null,null,null,null,null,null,null,null,null,null,null,null,null,null,null,null,null,null,null,null,null,null,null,null,null,null,"部門コード"]
[null,null,null,null,null,null,null,null,null,null,null," ",null,null,null," ",null,null,null," ",null,null,null," ",null,null,null," ",null,null,null," ",null,null,null," ",null,null,null,null,null,null,null,null,null,null,null,null,null,null,null,null,null,null,null,null,null,null,"※(工事名称：",null,null,null,null,null,null,null,null,null,null,null,null,null,null,null,null,null,null,null,null,null,null,null,null,null,null,null,null,null,null,null,null,null,null,null,null,null,null,null,null,null,null,null,null,null,null,null,null,null,null,null,null,null,null,null,null,null,null,null,null,null,null,null,null,null,null,"※",null,null,null,"適用",null,null,null,null,null,null,null,null,null,null,null,null,null,"%",null,null,null,null,null,null,null,null,null,null,null,null," ",null,null,null," ",null,null,null," ",null,null,null," ",null,null,null,null,null,null,null,null,null,null,null,null,null,null,null,null,null,null,null,null,null,null,null,null,null,null,null,null,null,null,null,null,null,null,null,null,null,null,null,")"]
[null,null,null,null,null,null,null,null,null,null,null,null,null,null,null,null,null,null,null,null,null,null,null,null,null,null,null,null,null,null,null,null,null,null,null,null,null,null,null,null,null,null,null,null,null,null,null,null,null,null,null,null,null,null,null,null,null,null,null,null,null,null,null,null,null,null,null,null,null,null,null,null,null,null,null,null,null,null,null,null,null,null,null,null,null,null,null,null,null,null,null,null,null,null,null,null,null,null,null,null,null,null,null,null,null,null,null,null,null,null,null,null,null,null,null,null,null,null,null,null,null,null,null,null,null,null,null,null,null,"税率"]
[null,null,null,"※当月課税分請求額(税抜) A",null,null,null,null,null,null,null,null,null,null,null,null,null,null,null,null,null,null,null,null,null,null,null,null,null,null,null,null,null,null,null,null,null,null,null,null,null,null,"※消費税",null,null,null,null,null,null,null,null,null,null,null,null,null,null,null,null,null,null,null,null,null,null,null,null,null,null,null,null,null,null,null,null,null,null,"※当月非課税分請求額",null,null,null,null,null,null,null,null,null,null,null,null,null,null,null,null,null,null,null,null,null,null,null,null,null,null,null,null,null,null,"※今回請求金額(税込)",null,null,null,null,null,null,null,null,null,null,null,null,null,null,null,null,null,null,null,null,null,null,null,null,null,null,null,null,null,null,null,null,null,null,null,null,null,null,null,null,null,null,null,null,null,null,null,"工種コード",null,null,null,null,null,null,null,null,null,null,null,null,null,null,null,null,null,null,null,null,null,null,"摘要"]
[null,null,null," ",null,null,null," ",null,null,null," ",null,null,null," ",null,null,null," ",null,null,null," ",null,null,null," ",null,null,null," ",null,null,null," ",null,null,null,"+",null,null," ",null,null,null," ",null,null,null," ",null,null,null," ",null,null,null," ",null,null,null," ",null,null,null," ",null,null,null," ",null,null,null,"+",null,null," ",null,null,null," ",null,null,null," ",null,null,null," ",null,null,null," ",null,null,null," ",null,null,null," ",null,null,null,"=",null,null," ",null,null,null," ",null,null,null," ",null,null,null," ",null,null,null," ",null,null,null," ",null,null,null," ",null,null,null," ",null,null,null,null,null,null,null,null,null,null," ",null,null,null,null,null,null,null,null," ",null,null,null," ",null,null,null," ",null,null,null," ",null,null,null," ",null,null,null,null,null,null," ",null,null,null," ",null,null,null," ",null,null,null,3]
[]
[null,null,null,null,null,null,null,null,null,null,null,null,null,null,null,null,null,null,null,null,null,null,null,null,null,null,null,null,null,null,null,null,null,null,null,null,null,null,null,null,null,null,null,null,null,null,null,null,null,null,null,null,null,null,null,null,null,null,null,null,null,null,null,null,null,null,null,null,null,null,null,null,null,null,null,null,null,null,null,null,null,null,null,null,null,null,null,null,null,null,null,null,null,null,null,null,null,null,null,null,null,null,null,null,null,null,null,null,null,null,null,null,null,null,null,null,null,null,null,null,null,null,null,null,null,null,null,null,null,null,null,null,null,null,null,null,null,null,null,null,null,null,null,null,null,null,null,null,null,null,null,null,null,null,null,null,"科目コード",null,null,null,null,null,null,null,null,null,null,null,null,null,null,null,null,null,null,null,null,null,null,"科目コード"]
[null,null,"※",null,null,null,"月日",null,null,null,null,null,null,null,null,"品　　　　　　　　　　　目",null,null,null,null,null,null,null,null,null,null,null,null,null,null,null,null,null,null,null,null,null,null,null,null,null,null,null,null,null,null,null,null,null,null,null,null,null,null,null,null,null,null,null,null,null,null,null,null,null,null,null,null,null,null,null,null,null,null,null,null,null,null,null,null,null,null,null,null,null,null,null,null,null,null,null,null,null,null,null,null,null,null,null,"数　量",null,null,null,null,null,null,null,null,null,null,null,null,null,null,"単　価",null,null,null,null,null,null,null,null,null,null,null,null,null,"金　額",null,null,null,null,null,null,null,null,null,null,null,null,null,null,null,null,null,null,null,null,null,null,null,null,null,null,null,4,null,null,null,0,null,null,null,1,null,null,null,0,null,null,null,null,null,null,null,null,null,null," ",null,null,null," ",null,null,null," ",null,null,null," "]
[]
[null,null,null,null,null,null,null,null,null,null,null,null,null,null,null,null,null,null,null,null,null,null,null,null,null,null,null,null,null,null,null,null,null,null,null,null,null,null,null,null,null,null,null,null,null,null,null,null,null,null,null,null,null,null,null,null,null,null,null,null,null,null,null,null,null,null,null,null,null,null,null,null,null,null,null,null,null,null,null,null,null,null,null,null,null,null,null,null,null,null,null,null,null,null,null,null,null,null,null,null,null,null,null,null,null,null,null,null,null,null,null,null,null,null,null,null,null,null,null,null,null,null,null,null,null,null,null,null,"   ",null,null,null,null,null,null,"   ",null,null,null,null,null,null,"   "]
[null,null,null,null,null,null,null,null,null,null,null,null,null,null,null,null,null,null,null,null,null,null,null,null,null,null,null,null,null,null,null,null,null,null,null,null,null,null,null,null,null,null,null,null,null,null,null,null,null,null,null,null,null,null,null,null,null,null,null,null,null,null,null,null,null,null,null,null,null,null,null,null,null,null,null,null,null,null,null,null,null,null,null,null,null,null,null,null,null,null,null,null,null,null,null,null,null,null,null,null,null,null,null,null,null,null,null,null,null,null,null,null,null,null,null,null,null,null,null,null,null,null,null,null,null,null,null,null,null,null,null,null,null,null,null,null,null,null,null,null,null,null,null,null,null,null,null,null,null,null,null,null,null,null,null,"支払区分",null,null,null,null,null,null,null,null,null,null,null,null,null,null,null,null,null,"切・継続",null,null,null,null,null,null,null,null,null,null,null,null,null,null,null,null,"回・完・（精）"]
[null,null,null,null,null,null,null,null,null,null,null,null,null,null,null,null,null,null,null,null,null,null,null,null,null,null,null,null,null,null,null,null,null,null,null,null,null,null,null,null,null,null,null,null,null,null,null,null,null,null,null,null,null,null,null,null,null,null,null,null,null,null,null,null,null,null,null,null,null,null,null,null,null,null,null,null,null,null,null,null,null,null,null,null,null,null,null,null,null,null,null,null,null,null,null,null,null,null,null,null,null,null,null,null,null,null,null,null,null,null,null,null,null,null,null,null,null,null,null,null,null,null,null,null,null,null,null,null,"   ",null,null,null,null,null,null,"   ",null,null,null,null,null,null,"   "]
[null,null,null,null,null,null,null,null,null,null,null,null,null,null,null,null,null,null,null,null,null,null,null,null,null,null,null,null,null,null,null,null,null,null,null,null,null,null,null,null,null,null,null,null,null,null,null,null,null,null,null,null,null,null,null,null,null,null,null,null,null,null,null,null,null,null,null,null,null,null,null,null,null,null,null,null,null,null,null,null,null,null,null,null,null,null,null,null,null,null,null,null,null,null,null,null,null,null,null,null,null,null,null,null,null,null,null,null,null,null,null,null,null,null,null,null,null,null,null,null,null,null,null,null,null,null,null,null,null,null,null,null,null,null,null,null,null,null,null,null,null,null,null,null,null,null,null,null,null,null,null,null,null,null,null,"査　定　日",null,null,null,null,null,null,null,null,null,null,null,null,null,null,null,null,null,null,null,null,null,null,null,null,null,null,null,null,null,null,null,"月",null,null,null,null,null,null,null,null,null,null,null,null,null,null,"日"]
[null,null,null,null,null,null,null,null,null,null,null,null,null,null,null,null,null,null,null,null,null,null,null,null,null,null,null,null,null,null,null,null,null,null,null,null,null,null,null,null,null,null,null,null,null,null,null,null,null,null,null,null,null,null,null,null,null,null,null,null,null,null,null,null,null,null,null,null,null,null,null,null,null,null,null,null,null,null,null,null,null,null,null,null,null,null,null,null,null,null,null,null,null,null,null,null,null,null,null,null,null,null,null,null,null,null,null,null,null,null,null,null,null,null,null,null,null,null,null,null,null,null,null,null,null,null,null,null,"   ",null,null,null,null,null,null,"   ",null,null,null,null,null,null,"   "]
[]
[null,null,null,null,null,null,null,null,null,null,null,null,null,null,null,null,null,null,null,null,null,null,null,null,null,null,null,null,null,null,null,null,null,null,null,null,null,null,null,null,null,null,null,null,null,null,null,null,null,null,null,null,null,null,null,null,null,null,null,null,null,null,null,null,null,null,null,null,null,null,null,null,null,null,null,null,null,null,null,null,null,null,null,null,null,null,null,null,null,null,null,null,null,null,null,null,null,null,null,null,null,null,null,null,null,null,null,null,null,null,null,null,null,null,null,null,null,null,null,null,null,null,null,null,null,null,null,null,"   ",null,null,null,null,null,null,"   ",null,null,null,null,null,null,"   "]
[]
[null,null,null,null,null,null,null,null,null,null,null,null,null,null,null,null,null,null,null,null,null,null,null,null,null,null,null,null,null,null,null,null,null,null,null,null,null,null,null,null,null,null,null,null,null,null,null,null,null,null,null,null,null,null,null,null,null,null,null,null,null,null,null,null,null,null,null,null,null,null,null,null,null,null,null,null,null,null,null,null,null,null,null,null,null,null,null,null,null,null,null,null,null,null,null,null,null,null,null,null,null,null,null,null,null,null,null,null,null,null,null,null,null,null,null,null,null,null,null,null,null,null,null,null,null,null,null,null,"   ",null,null,null,null,null,null,"   ",null,null,null,null,null,null,"   "]
[]
[null,null,null,null,null,null,null,null,null,null,null,null,null,null,null,null,null,null,null,null,null,null,null,null,null,null,null,null,null,null,null,null,null,null,null,null,null,null,null,null,null,null,null,null,null,null,null,null,null,null,null,null,null,null,null,null,null,null,null,null,null,null,null,null,null,null,null,null,null,null,null,null,null,null,null,null,null,null,null,null,null,null,null,null,null,null,null,null,null,null,null,null,null,null,null,null,null,null,null,null,null,null,null,null,null,null,null,null,null,null,null,null,null,null,null,null,null,null,null,null,null,null,null,null,null,null,null,null,"   ",null,null,null,null,null,null,"   ",null,null,null,null,null,null,"   "]
[]
[null,null,null,null,null,null,"計",null,null,null,null,null,null,null,null,null,null,null,null,null,null,null,null,null,null,null,null,null,null,null,null,null,null,null,null,null,null,null,null,null,null,null,null,null,null,null,null,null,null,null,null,null,null,null,null,null,null,null,null,null,null,null,null,null,null,null,null,null,null,null,null,null,null,null,null,null,null,null,null,null,null,null,null,null,null,null,null,null,null,null,null,null,null,null,null,null,null,null,null,null,null,null,null,null,null,null,null,null,null,null,null,null,null,null,null,null,null,null,null,null,null,null,null,null,null,null,null,null,"   ",null,null,null,null,null,null,"   ",null,null,null,null,null,null,"",null,null,null,null,null,null,"A"]
[]
[null,null,null,"工　事　コ　ー　ド",null,null,null,null,null,null,null,null,null,null,null,null,null,null,null,null,null,null,null,null,null,null,null,null,null,null,null,null,null,null,null,"工種コード",null,null,null,null,null,null,null,null,null,null,null,null,null,null,null,null,null,null,null,null,null,null,null,"摘　要",null,null,null,null,null,null,null,null,null,null,null,null,null,null,null,null,null,null,null,"金　　　　　額",null,null,null,null,null,null,null,null,null,null,null,null,null,null,null,null,null,null,null,null,null,null,null,null,null,null,null,null,null,null,null,null,null,null,null,null,null,null,"科目コード",null,null,null,null,null,null,null,null,null,null,null,null,null,null,null,null,null,"非課税",null,null,null,null,null,null,null,null,null,"取消"]
["①",null,null," ",null,null,null," ",null,null,null," ",null,null,null," ",null,null,null," ",null,null,null," ",null,null,null," ",null,null,null,null,null,null,null," ",null,null,null," ",null,null,null,null,null,null,null," ",null,null,null," ",null,null,null,null,null,null,null," ",null,null,null," ",null,null,null," ",null,null,null,null,null,null,null,null,null,null,null," ",null,null,null," ",null,null,null," ",null,null,null," ",null,null,null," ",null,null,null," ",null,null,null," ",null,null,null," ",null,null,null," ",null,null,null,null,null,null," ",null,null,null," ",null,null,null," ",null,null,null," ",null,null,null,null,null,null,null," ",null,null,null,null,null,null,null," "]
[]
[]
["②",null,null," ",null,null,null," ",null,null,null," ",null,null,null," ",null,null,null," ",null,null,null," ",null,null,null," ",null,null,null,null,null,null,null," ",null,null,null," ",null,null,null," ",null,null,null," ",null,null,null," ",null,null,null,null,null,null,null," ",null,null,null," ",null,null,null," ",null,null,null,null,null,null,null,null,null,null,null," ",null,null,null," ",null,null,null," ",null,null,null," ",null,null,null," ",null,null,null," ",null,null,null," ",null,null,null," ",null,null,null," ",null,null,null,null,null,null," ",null,null,null," ",null,null,null," ",null,null,null," ",null,null,null,null,null,null,null," ",null,null,null,null,null,null,null," "]
[]
[]
["③",null,null," ",null,null,null," ",null,null,null," ",null,null,null," ",null,null,null," ",null,null,null," ",null,null,null," ",null,null,null,null,null,null,null," ",null,null,null," ",null,null,null," ",null,null,null," ",null,null,null," ",null,null,null,null,null,null,null," ",null,null,null," ",null,null,null," ",null,null,null,null,null,null,null,null,null,null,null," ",null,null,null," ",null,null,null," ",null,null,null," ",null,null,null," ",null,null,null," ",null,null,null," ",null,null,null," ",null,null,null," ",null,null,null,null,null,null," ",null,null,null," ",null,null,null," ",null,null,null," ",null,null,null,null,null,null,null," ",null,null,null,null,null,null,null," "]
[null,null,null,null,null,null,null,null,null,null,null,null,null,null,null,null,null,null,null,null,null,null,null,null,null,null,null,null,null,null,null,null,null,null,null,null,null,null,null,null,null,null,null,null,null,null,null,null,null,null,null,null,null,null,null,null,null,null,null,null,null,null,null,null,null,null,null,null,null,null,null,null,null,null,null,null,null,null,null,null,null,null,null,null,null,null,null,null,null,null,null,null,null,null,null,null,null,null,null,null,null,null,null,null,null,null,null,null,null,null,null,null,null,null,null,null,null,null,null,null,null,null,null,null,null,null,null,null,null,null,null,null,null,null,null,null,null,null,null,null,null,null,null,null,null,null,null,null,null,null,null,null,null,null,null,null,null,"担当課長",null,null,null,null,null,null,null,null,null,null,null,null,null,null,null,null,null,null,null,null,null,null,null,"係長・主任・担当者"]
[]
["④",null,null," ",null,null,null," ",null,null,null," ",null,null,null," ",null,null,null," ",null,null,null," ",null,null,null," ",null,null,null,null,null,null,null," ",null,null,null," ",null,null,null," ",null,null,null," ",null,null,null," ",null,null,null,null,null,null,null," ",null,null,null," ",null,null,null," ",null,null,null,null,null,null,null,null,null,null,null," ",null,null,null," ",null,null,null," ",null,null,null," ",null,null,null," ",null,null,null," ",null,null,null," ",null,null,null," ",null,null,null," ",null,null,null,null,null,null," ",null,null,null," ",null,null,null," ",null,null,null," ",null,null,null,null,null,null,null," ",null,null,null,null,null,null,null," "]
[]
[]
["⑤",null,null," ",null,null,null," ",null,null,null," ",null,null,null," ",null,null,null," ",null,null,null," ",null,null,null," ",null,null,null,null,null,null,null," ",null,null,null," ",null,null,null," ",null,null,null," ",null,null,null," ",null,null,null,null,null,null,null," ",null,null,null," ",null,null,null," ",null,null,null,null,null,null,null,null,null,null,null," ",null,null,null," ",null,null,null," ",null,null,null," ",null,null,null," ",null,null,null," ",null,null,null," ",null,null,null," ",null,null,null," ",null,null,null,null,null,null," ",null,null,null," ",null,null,null," ",null,null,null," ",null,null,null,null,null,null,null," ",null,null,null,null,null,null,null," "]
[null,null,null,null,null,null,null,null,null,null,null,null,null,null,null,null,null,null,null,null,null,null,null,null,null,null,null,null,null,null,null,null,null,null,null,null,null,null,null,null,null,null,null,null,null,null,null,null,null,null,null,null,null,null,null,null,null,null,null,null,null,null,null,null,null,null,null,null,null,null,null,null,null,null,null,null,null,null,null,null,null,null,null,null,null,null,null,null,null,null,null,null,null,null,null,null,null,null,null,null,null,null,null,null,null,null,null,null,null,null,null,null,null,null,null,null,null,null,null,null,null,null,null,null,null,null,null,null,null,null,null,null,null,null,null,null,null,null,null,null,null,null,null,null,null,null,null,null,null,null,null,null,null,null,null,null,null,"消費税"]
[]
["⑥",null,null," ",null,null,null," ",null,null,null," ",null,null,null," ",null,null,null," ",null,null,null," ",null,null,null," ",null,null,null,null,null,null,null," ",null,null,null," ",null,null,null," ",null,null,null," ",null,null,null," ",null,null,null,null,null,null,null," ",null,null,null," ",null,null,null," ",null,null,null,null,null,null,null,null,null,null,null," ",null,null,null," ",null,null,null," ",null,null,null," ",null,null,null," ",null,null,null," ",null,null,null," ",null,null,null," ",null,null,null," ",null,null,null,null,null,null," ",null,null,null," ",null,null,null," ",null,null,null," ",null,null,null,null,null,null,null," ",null,null,null,null,null,null,null," ",null,null,null,null,null,null,null,null,null,null," ",null,null,null," ",null,null,null," ",null,null,null," ",null,null,null," ",null,null,null," ",null,null,null," ",null,null,null," "]
[]
[]
[null,null,null,"手書きの場合は黒のボールペンで記入してください。",null,null,null,null,null,null,null,null,null,null,null,null,null,null,null,null,null,null,null,null,null,null,null,null,null,null,null,null,null,null,null,null,null,null,null,null,null,null,null,null,null,null,null,null,null,null,null,null,null,null,null,null,null,null,null,null,null,null,null,null,null,null,null,null,null,null,"合計",null,null,null,null,null,null,null,null,null,null,null,null,null,null,null,null,null,null,null,null,null,null,null,null,null,null,null,null,null,null,null,null,null,null,null,null,null,null,null,null,null,null,null,null,null,null,null,null,null,null,null,null,null,null,null,null,null,null,null,null,"非課税は１を記入"]
[]
[null,null,null,null,null,null,null,null,null,null,null,null,null,null,null,null,null,null,null,null,null,null,null,null,null,null,null,null,null,null,null,null,null,null,null,null,null,null,null,null,null,null,null,null,null,null,null,null,null,null,null,null,null,null,null,null,null,null,null,null,null,null,null,null,null,null,null,null,null,null,null,null,null,null,null,null,null,null,null,null,null,null,null,null,null,null,null,null,null,null,null,null,null,null,null,null,null,null,null,null,null,null,null,null,null,null,null,null,null,null,null,null,null,null,null,null,null,null,null,null,null,null,null,null,null,null,null,null,null,null,null,null,null,null,null,null,null,null,null,null,null,null,null,null,null,null,null,null,null,null,null,null,null,null,null,null,null,null,null,null,null,null,null,null,null,null,null,null,null,null,null,null,null,null,null,null,null,null,null,null,null,null,null,null,"②取引先控"]
[null,null,null,0,null,null,null,1,null,null,null,null,null,null,null," ",null,null,null," ",null,null,null," ",null,null,null," ",null,null,null," ",null,null,null," ",null,null,null," ",null,null,null,null,null,null,null,null,null,null,null,null,null,null,null,null,null,null,null,null,null,null,null,null,null,null,null,null,null,"請　求　書（　材料・経費　）",null,null,null,null,null,null,null,null,null,null,null,null,null,null,null,null,null,null,null,null,null,null,null,null,null,null,null,null,null,null,null,null,null,null,null,null,null,null,null,null,null,null,null,null,null,null,null,null,null,null,null,null,null,null,null,null,null,null,null,null,null,null,null,null,null,null,null,{"$f":"EH2","v":0},null,null,null,{"$f":"EL2&\"\"","v":" "},null,null,null,null,null,null,null,null,null,null,"T",null,null,null,{"$f":"FA2","v":" "},null,null,null,{"$f":"FE2","v":" "},null,null,null,{"$f":"FI2","v":" "},null,null,null,{"$f":"FM2","v":" "},null,null,null,{"$f":"FQ2","v":" "},null,null,null,{"$f":"FU2","v":" "},null,null,null,{"$f":"FY2","v":" "},null,null,null,{"$f":"GC2","v":" "},null,null,null,{"$f":"GG2","v":" "},null,null,null,{"$f":"GK2","v":" "},null,null,null,{"$f":"GO2","v":" "},null,null,null,{"$f":"GS2","v":" "},null,null,null,{"$f":"GW2","v":" "}]
[]
[null,null,null,"\n下記の通り請求致します。",null,null,null,null,null,null,null,null,null,null,null,null,null,null,null,null,null,null,null,null,null,null,null,null,null,null,null,null,null,null,null,null,null,null,null,null,null,null,null,null,null,null,null,null,null,null,null,null,null,null,null,"※は必ずご記入ください。",null,null,null,null,null,null,null,null,null,null,null,null,null,null,null,null,null,null,null,null,null,null,null,null,null,null,null,null,null,null,null,null,null,null,null,null,null,null,null,null,null,null,null,null,null,null,null,null,null,null,null,null,null,null,null,null,null,null,null,null,null,null,null,null,null,null,null,null,null,null,null,null,null,"免税事業者は1を記入",null,null,null,null,null,null,null,null,null,null,null,null,null,null,null,null,null,null,null,null,null,null,"住所",null,null,null,null,null,"②取引先控"]
[null,null,null,null,null,null,null,null,null,null,null,null,null,null,null,null,null,null,null,null,null,null,null,null,null,null,null,null,null,null,null,null,null,null,null,null,null,null,null,null,null,null,null,null,null,null,null,null,null,null,null,null,null,null,null,"※(中村組担当者名：",null,null,null,null,null,null,null,null,null,null,null,null,null,null,null,null,null,null,null,null,null,null,null,null,{"$f":"CC5","v":0}]
[null,null,null,null,null,null,null,null,null,null,null,null,null,null,null,null,null,null,null,null,null,null,null,null,null,null,null,null,null,null,null,null,null,null,null,null,null,null,null,null,null,null,null,null,null,null,null,null,null,null,null,null,null,null,null,null,null,null,null,null,null,null,null,null,null,null,null,null,null,null,null,null,null,null,null,null,null,null,null,null,null,null,null,null,null,null,null,null,null,null,null,null,null,null,null,null,null,null,null,null,null,null,null,null,null,null,null,null,null,null,null,null,null,null,null,null,null,null,null,null,null,null,null,null,null,null,null,null,null,null,null,null,null,null,null,null,null,null,null,null,null,null,null,null,null,null,null,null,null,null,null,null,"社名"]
[null,null,null,"※請求年月日(西暦)",null,null,null,null,null,null,null,null,null,null,null,null,null,null,null,null,null,null,null,null,null,null,null,null,null,null,null,null,null,null,null,null,null,null,null,null,null,null,null,null,null,null,null,null,null,null,null,null,null,null,null,null,null,null,null,null,null,null,null,null,null,null,null,null,null,null,null,null,null,null,null,null,null,"※取引先コード",null,null,null,null,null,null,null,null,null,null,null,null,null,null,null,null,null,null,null,null,null,null,null,"※注文No."]
[null,null,null,{"$f":"D8","v":" "},null,null,null,{"$f":"H8","v":" "},null,null,null,{"$f":"L8","v":" "},null,null,null,{"$f":"P8","v":" "},null,null,null,"年",null,null,{"$f":"W8","v":" "},null,null,null,{"$f":"AA8","v":" "},null,null,null,"月",null,null,{"$f":"AH8","v":" "},null,null,null,{"$f":"AL8","v":" "},null,null,null,"日",null,null,null,null,null,null,null,null,null,null,null,null,null,null,null,null,null,null,null,null,null,null,null,null,null,null,null,null,null,null,null,null,null,null,null,{"$f":"BZ8","v":" "},null,null,null,{"$f":"CD8","v":" "},null,null,null,{"$f":"CH8","v":" "},null,null,null,{"$f":"CL8","v":" "},null,null,null,{"$f":"CP8","v":" "},null,null,null,null,null,null,null,{"$f":"CX8","v":" "},null,null,null,{"$f":"DB8","v":" "},null,null,null,{"$f":"DF8","v":" "},null,null,null,{"$f":"DJ8","v":" "},null,null,null,{"$f":"DN8","v":" "},null,null,null,null,null,null,null,null,null,null,null,null,null,null,null,null,null,null,null,null,null,null,null,null,null,null,null,null,null,null,null,null,null,null,"TEL"]
[]
[null,null,null,null,null,null,null,null,"※工事コード",null,null,null,null,null,null,null,null,null,null,null,null,null,null,null,null,null,null,null,null,null,null,null,null,null,null,null,null,null,null,null,null,null,null,null,null,null,null,null,null,null,null,null,null,null,null,null,null,null,null,null,null,null,null,null,null,null,null,null,null,null,null,null,null,null,null,null,null,null,null,null,null,null,null,null,null,null,null,null,null,null,null,null,null,null,null,null,null,null,null,null,null,null,null,null,null,null,null,null,null,null,null,null,null,null,null,null,null,null,null,null,null,null,null,null,null,null,null,null,null,null,null,null,null,null,null,null,null,null,null,null,null,null,null,null,null,null,null,null,null,null,null,null,null,null,null,null,"部門コード"]
[null,null,null,null,null,null,null,null,null,null,null,{"$f":"L11","v":" "},null,null,null,{"$f":"P11","v":" "},null,null,null,{"$f":"T11","v":" "},null,null,null,{"$f":"X11","v":" "},null,null,null,{"$f":"AB11","v":" "},null,null,null,{"$f":"AF11","v":" "},null,null,null,{"$f":"AJ11","v":" "},null,null,null,null,null,null,null,null,null,null,null,null,null,null,null,null,null,null,null,null,null,"※(工事名称：",null,null,null,null,null,null,null,null,null,null,null,null,null,null,null,null,null,{"$f":"BX11","v":0},null,null,null,null,null,null,null,null,null,null,null,null,null,null,null,null,null,null,null,null,null,null,null,null,null,null,null,null,null,null,null,null,null,null,null,null,null,null,null,null,null,null,null,null,null,null,null,null,null,"※",null,null,null,"適用",null,null,null,null,null,{"$f":"EF11","v":0},null,null,null,null,null,null,null,"%",null,null,null,null,null,null,null,null,null,null,null,null,{"$f":"FA11","v":" "},null,null,null,{"$f":"FE11","v":" "},null,null,null,{"$f":"FI11","v":" "},null,null,null,{"$f":"FM11","v":" "},null,null,null,null,null,null,null,null,null,null,null,null,null,null,null,{"$f":"GC11","v":0},null,null,null,null,null,null,null,null,null,null,null,null,null,null,null,null,null,null,null,null,null,null,null,")"]
[null,null,null,null,null,null,null,null,null,null,null,null,null,null,null,null,null,null,null,null,null,null,null,null,null,null,null,null,null,null,null,null,null,null,null,null,null,null,null,null,null,null,null,null,null,null,null,null,null,null,null,null,null,null,null,null,null,null,null,null,null,null,null,null,null,null,null,null,null,null,null,null,null,null,null,null,null,null,null,null,null,null,null,null,null,null,null,null,null,null,null,null,null,null,null,null,null,null,null,null,null,null,null,null,null,null,null,null,null,null,null,null,null,null,null,null,null,null,null,null,null,null,null,null,null,null,null,null,null,"税率"]
[null,null,null,"※当月課税分請求額(税抜) A",null,null,null,null,null,null,null,null,null,null,null,null,null,null,null,null,null,null,null,null,null,null,null,null,null,null,null,null,null,null,null,null,null,null,null,null,null,null,"※消費税",null,null,null,null,null,null,null,null,null,null,null,null,null,null,null,null,null,null,null,null,null,null,null,null,null,null,null,null,null,null,null,null,null,null,"※当月非課税分請求額",null,null,null,null,null,null,null,null,null,null,null,null,null,null,null,null,null,null,null,null,null,null,null,null,null,null,null,null,null,null,"※今回請求金額(税込)",null,null,null,null,null,null,null,null,null,null,null,null,null,null,null,null,null,null,null,null,null,null,null,null,null,null,null,null,null,null,null,null,null,null,null,null,null,null,null,null,null,null,null,null,null,null,null,"工種コード",null,null,null,null,null,null,null,null,null,null,null,null,null,null,null,null,null,null,null,null,null,null,"摘要"]
[null,null,null,{"$f":"D14","v":" "},null,null,null,{"$f":"H14","v":" "},null,null,null,{"$f":"L14","v":" "},null,null,null,{"$f":"P14","v":" "},null,null,null,{"$f":"T14","v":" "},null,null,null,{"$f":"X14","v":" "},null,null,null,{"$f":"AB14","v":" "},null,null,null,{"$f":"AF14","v":" "},null,null,null,{"$f":"AJ14&\"\"","v":" "},null,null,null,"+",null,null,{"$f":"AQ14","v":" "},null,null,null,{"$f":"AU14","v":" "},null,null,null,{"$f":"AY14","v":" "},null,null,null,{"$f":"BC14","v":" "},null,null,null,{"$f":"BG14","v":" "},null,null,null,{"$f":"BK14","v":" "},null,null,null,{"$f":"BO14","v":" "},null,null,null,{"$f":"BS14","v":" "},null,null,null,"+",null,null,{"$f":"BZ14","v":" "},null,null,null,{"$f":"CD14","v":" "},null,null,null,{"$f":"CH14","v":" "},null,null,null,{"$f":"CL14","v":" "},null,null,null,{"$f":"CP14","v":" "},null,null,null,{"$f":"CT14","v":" "},null,null,null,{"$f":"CX14","v":" "},null,null,null,"=",null,null,{"$f":"DE14","v":" "},null,null,null,{"$f":"DI14","v":" "},null,null,null,{"$f":"DM14","v":" "},null,null,null,{"$f":"DQ14","v":" "},null,null,null,{"$f":"DU14","v":" "},null,null,null,{"$f":"DY14","v":" "},null,null,null,{"$f":"EC14","v":" "},null,null,null,{"$f":"EG14","v":" "},null,null,null,{"$f":"EK14&\"\"","v":""},null,null,null,null,null,null,{"$f":"ER14","v":" "},null,null,null,null,null,null,null,null,{"$f":"FA14","v":" "},null,null,null,{"$f":"FE14","v":" "},null,null,null,{"$f":"FI14","v":" "},null,null,null,{"$f":"FM14","v":" "},null,null,null,{"$f":"FQ14","v":" "},null,null,null,null,null,null,{"$f":"FX14","v":" "},null,null,null,{"$f":"GB14","v":" "},null,null,null,{"$f":"GF14","v":" "},null,null,null,3]
[]
[null,null,null,null,null,null,null,null,null,null,null,null,null,null,null,null,null,null,null,null,null,null,null,null,null,null,null,null,null,null,null,null,null,null,null,null,null,null,null,null,null,null,null,null,null,null,null,null,null,null,null,null,null,null,null,null,null,null,null,null,null,null,null,null,null,null,null,null,null,null,null,null,null,null,null,null,null,null,null,null,null,null,null,null,null,null,null,null,null,null,null,null,null,null,null,null,null,null,null,null,null,null,null,null,null,null,null,null,null,null,null,null,null,null,null,null,null,null,null,null,null,null,null,null,null,null,null,null,null,null,null,null,null,null,null,null,null,null,null,null,null,null,null,null,null,null,null,null,null,null,null,null,null,null,null,null,"科目コード",null,null,null,null,null,null,null,null,null,null,null,null,null,null,null,null,null,null,null,null,null,null,"科目コード"]
[null,null,"※",null,null,null,"月日",null,null,null,null,null,null,null,null,"品　　　　　　　　　　　目",null,null,null,null,null,null,null,null,null,null,null,null,null,null,null,null,null,null,null,null,null,null,null,null,null,null,null,null,null,null,null,null,null,null,null,null,null,null,null,null,null,null,null,null,null,null,null,null,null,null,null,null,null,null,null,null,null,null,null,null,null,null,null,null,null,null,null,null,null,null,null,null,null,null,null,null,null,null,null,null,null,null,null,"数　量",null,null,null,null,null,null,null,null,null,null,null,null,null,null,"単　価",null,null,null,null,null,null,null,null,null,null,null,null,null,"金　額",null,null,null,null,null,null,null,null,null,null,null,null,null,null,null,null,null,null,null,null,null,null,null,null,null,null,null,4,null,null,null,0,null,null,null,1,null,null,null,0,null,null,null,null,null,null,null,null,null,null,{"$f":"FX17","v":" "},null,null,null,{"$f":"GB17","v":" "},null,null,null,{"$f":"GF17","v":" "},null,null,null,{"$f":"GJ17","v":" "}]
[]
[null,null,null,null,null,null,{"$f":"G19","v":"00:00:00"},null,null,null,null,null,null,null,null,{"$f":"P19","v":0},null,null,null,null,null,null,null,null,null,null,null,null,null,null,null,null,null,null,null,null,null,null,null,null,null,null,null,null,null,null,null,null,null,null,null,null,null,null,null,null,null,null,null,null,null,null,null,null,null,null,null,null,null,null,null,null,null,null,null,null,null,null,null,null,null,null,null,null,null,null,null,null,null,null,null,null,null,null,null,null,null,null,null,{"$f":"CV19&\"\"","v":""},null,null,null,null,null,null,null,null,null,null,null,null,null,null,{"$f":"DK19&\"\"","v":""},null,null,null,null,null,null,null,null,null,null,null,null,null,{"$f":"DY19","v":"   "},null,null,null,null,null,null,{"$f":"EF19","v":"   "},null,null,null,null,null,null,{"$f":"EM19","v":"   "}]
[]
[null,null,null,null,null,null,{"$f":"G21","v":"00:00:00"},null,null,null,null,null,null,null,null,{"$f":"P21","v":0},null,null,null,null,null,null,null,null,null,null,null,null,null,null,null,null,null,null,null,null,null,null,null,null,null,null,null,null,null,null,null,null,null,null,null,null,null,null,null,null,null,null,null,null,null,null,null,null,null,null,null,null,null,null,null,null,null,null,null,null,null,null,null,null,null,null,null,null,null,null,null,null,null,null,null,null,null,null,null,null,null,null,null,{"$f":"CV21&\"\"","v":""},null,null,null,null,null,null,null,null,null,null,null,null,null,null,{"$f":"DK21&\"\"","v":""},null,null,null,null,null,null,null,null,null,null,null,null,null,{"$f":"DY21","v":"   "},null,null,null,null,null,null,{"$f":"EF21","v":"   "},null,null,null,null,null,null,{"$f":"EM21","v":"   "}]
[]
[null,null,null,null,null,null,{"$f":"G23","v":"00:00:00"},null,null,null,null,null,null,null,null,{"$f":"P23","v":0},null,null,null,null,null,null,null,null,null,null,null,null,null,null,null,null,null,null,null,null,null,null,null,null,null,null,null,null,null,null,null,null,null,null,null,null,null,null,null,null,null,null,null,null,null,null,null,null,null,null,null,null,null,null,null,null,null,null,null,null,null,null,null,null,null,null,null,null,null,null,null,null,null,null,null,null,null,null,null,null,null,null,null,{"$f":"CV23&\"\"","v":""},null,null,null,null,null,null,null,null,null,null,null,null,null,null,{"$f":"DK23&\"\"","v":""},null,null,null,null,null,null,null,null,null,null,null,null,null,{"$f":"DY23","v":"   "},null,null,null,null,null,null,{"$f":"EF23","v":"   "},null,null,null,null,null,null,{"$f":"EM23","v":"   "}]
[]
[null,null,null,null,null,null,{"$f":"G25","v":"00:00:00"},null,null,null,null,null,null,null,null,{"$f":"P25","v":0},null,null,null,null,null,null,null,null,null,null,null,null,null,null,null,null,null,null,null,null,null,null,null,null,null,null,null,null,null,null,null,null,null,null,null,null,null,null,null,null,null,null,null,null,null,null,null,null,null,null,null,null,null,null,null,null,null,null,null,null,null,null,null,null,null,null,null,null,null,null,null,null,null,null,null,null,null,null,null,null,null,null,null,{"$f":"CV25&\"\"","v":""},null,null,null,null,null,null,null,null,null,null,null,null,null,null,{"$f":"DK25&\"\"","v":""},null,null,null,null,null,null,null,null,null,null,null,null,null,{"$f":"DY25","v":"   "},null,null,null,null,null,null,{"$f":"EF25","v":"   "},null,null,null,null,null,null,{"$f":"EM25","v":"   "}]
[]
[null,null,null,null,null,null,{"$f":"G27","v":"00:00:00"},null,null,null,null,null,null,null,null,{"$f":"P27","v":0},null,null,null,null,null,null,null,null,null,null,null,null,null,null,null,null,null,null,null,null,null,null,null,null,null,null,null,null,null,null,null,null,null,null,null,null,null,null,null,null,null,null,null,null,null,null,null,null,null,null,null,null,null,null,null,null,null,null,null,null,null,null,null,null,null,null,null,null,null,null,null,null,null,null,null,null,null,null,null,null,null,null,null,{"$f":"CV27&\"\"","v":""},null,null,null,null,null,null,null,null,null,null,null,null,null,null,{"$f":"DK27&\"\"","v":""},null,null,null,null,null,null,null,null,null,null,null,null,null,{"$f":"DY27","v":"   "},null,null,null,null,null,null,{"$f":"EF27","v":"   "},null,null,null,null,null,null,{"$f":"EM27","v":"   "}]
[]
[null,null,null,null,null,null,{"$f":"G29","v":"00:00:00"},null,null,null,null,null,null,null,null,{"$f":"P29","v":0},null,null,null,null,null,null,null,null,null,null,null,null,null,null,null,null,null,null,null,null,null,null,null,null,null,null,null,null,null,null,null,null,null,null,null,null,null,null,null,null,null,null,null,null,null,null,null,null,null,null,null,null,null,null,null,null,null,null,null,null,null,null,null,null,null,null,null,null,null,null,null,null,null,null,null,null,null,null,null,null,null,null,null,{"$f":"CV29&\"\"","v":""},null,null,null,null,null,null,null,null,null,null,null,null,null,null,{"$f":"DK29&\"\"","v":""},null,null,null,null,null,null,null,null,null,null,null,null,null,{"$f":"DY29","v":"   "},null,null,null,null,null,null,{"$f":"EF29","v":"   "},null,null,null,null,null,null,{"$f":"EM29","v":"   "}]
[]
[null,null,null,null,null,null,"計",null,null,null,null,null,null,null,null,null,null,null,null,null,null,null,null,null,null,null,null,null,null,null,null,null,null,null,null,null,null,null,null,null,null,null,null,null,null,null,null,null,null,null,null,null,null,null,null,null,null,null,null,null,null,null,null,null,null,null,null,null,null,null,null,null,null,null,null,null,null,null,null,null,null,null,null,null,null,null,null,null,null,null,null,null,null,null,null,null,null,null,null,null,null,null,null,null,null,null,null,null,null,null,null,null,null,null,null,null,null,null,null,null,null,null,null,null,null,null,null,null,{"$f":"DY31","v":"   "},null,null,null,null,null,null,{"$f":"EF31","v":"   "},null,null,null,null,null,null,{"$f":"EM31","v":""},null,null,null,null,null,null,"A"]